Cogmind - Beta 16 @@@ ROGUE MODE // 2025.10.26 @ 16:28:13 Player: Mxykikker Result: Self-destructed Performance ------------- Evolutions (1) 500 Regions Visited (2) 400 Robots Destroyed (19) 95 Value Destroyed (332) 332 Prototype IDs (0) 0 Alien Tech Used (0) 0 Bonus (0) 0 TOTAL SCORE: 1327 Bonus ------- None Cogmind --------- Core Integrity 139/400 Matter 129/300 Energy 83/100 System Corruption 0% Temperature Cool (0) Movement Core (150) Ox2 Location -9/Materials Parts ------- > --- POWER (1) -------- (None) > --- PROPULSION (3) --- (None) > --- UTILITY (3) ------ Signal Interpreter Actuator Array > --- WEAPON (2) ------- Mining Claw > --- INVENTORY (5) ---- Small Storage Unit Weight Redist. System Actuator Array Grenade Launcher Datajack Peak State ------------ > --- POWER ------------ Nuclear Core > --- PROPULSION ------- Hover Unit Hover Unit Hover Unit > --- UTILITY ---------- Sensor Array Signal Interpreter Actuator Array > --- WEAPON ----------- Mining Claw Mining Claw > --- INVENTORY -------- Small Storage Unit Weight Redist. System Actuator Array Grenade Launcher Datajack [Rating: 13] Favorites ----------- Power Ion Engine Engine Ion Engine Power Core Nuclear Core Propulsion Hover Unit Wheel Compact Wheel Hover Unit Hover Unit Utility Signal Interpreter Device Sensor Array Storage Small Storage Unit Processor Signal Interpreter Weapon Mining Claw Energy Gun Medium Laser Ballistic Gun Assault Rifle Launcher Grenade Launcher Slashing Weapon Mining Claw Build | -11 -10 -9 ------- Run | Yrd Mat Mat Slots Evolved 2 | . . 2 Power . | . . . Propulsion 1 | . . 1 Utility 1 | . . 1 Weapon . | . . . Parts Attached 18 | 6 9 3 Power 3 | 1 1 1 Engine 2 | 1 1 . Core 1 | . . 1 Reactor . | . . . Propulsion 6 | 2 3 1 Treads . | . . . Leg . | . . . Wheel 2 | 2 . . Hover 4 | . 3 1 Flight . | . . . Utility 4 | 1 2 1 Device 2 | . 1 1 Storage 1 | 1 . . Processor 1 | . 1 . Hackware . | . . . Protection . | . . . Artifact . | . . . Weapon 5 | 2 3 . Energy Gun 1 | 1 . . Energy Cannon . | . . . Ballistic Gun 1 | 1 . . Ballistic Cannon . | . . . Launcher 1 | . 1 . Special Weapon . | . . . Impact Weapon . | . . . Slashing Weapon 2 | . 2 . Piercing Weapon . | . . . Special Melee Weapon . | . . . Unidentified Prototypes . | . . . Parts Lost 6 | . 1 5 Power . | . . . Propulsion 4 | . 1 3 Utility 1 | . . 1 Weapon 1 | . . 1 Highest Loss Streak 5 | . 1 5 To Critical Strikes . | . . . Average Backups 3 | . 3 4 Power . | . . . Propulsion . | . . . Utility 1 | . 1 2 Weapon 1 | . 1 1 Tool/Special . | . . . Unused Backups 5 | . 2 3 Power . | . . . Propulsion 1 | . 1 . Utility 3 | . 1 2 Weapon . | . . . Tool/Special 1 | . . 1 Average Slot Usage (%) 85 | . 84 89 Engine 12 | . 14 6 Core 1 | . . 4 Wheel 8 | . 11 . Hover 18 | . 15 30 Device 6 | . 3 15 Storage 5 | . 6 . Processor 5 | . 4 11 Energy Gun 4 | . 5 . Ballistic Gun 4 | . 5 . Slashing Weapon 17 | . 15 20 Peak Build Rating 13 | 6 7 13 Average Rating 6 | 4 5 9 On Entrance 4 | . 6 7 Avg Prop Armor Cover (%) . | . . . Naked Turns . | . . . Heaviest Build 18 | 14 15 18 Greatest Support 32 | 32 32 18 Greatest Overweight (x) 3 | 3 2 1 Average Overweight (x) . | . . . Largest Inventory Capacity 8 | 8 8 5 Average Capacity 6 | 7 6 5 Most Carried 7 | . 7 5 Average Carried 3 | . 3 4 Final Capacity 8 | 8 5 5 Final Carried 5 | . 5 5 Class Distribution -------------------- 95% | Mutant 4% | Gladiator Dominant Class ---------------- Mutant | -10/Materials Mutant | -9/Materials Resources | -11 -10 -9 ----------- Run | Yrd Mat Mat Matter Collected 412 | 207 176 29 Remotely . | . . . Salvage Created 320 | . 244 76 Parts 33 | . 21 12 Haulers Intercepted 2 | . 2 . Recyclers Shooed . | . . . Parts Field Recycled . | . . . Retrieved Matter . | . . . Parts Self-Destructed . | . . . Prevented . | . . . Parts Restored . | . . . Kills | -11 -10 -9 ------- Run | Yrd Mat Mat Combat Hostiles Destroyed 12 | . 8 4 Guns 1 | . 1 . AOE 11 | . 7 4 Classes Destroyed 6 | . 6 . Builder 1 | . 1 . Hauler 2 | . 2 . Operator 2 | . 1 1 Watcher 2 | . 1 1 Swarmer 8 | . 5 3 Grunt 4 | . 3 1 Best Kill Streak 4 | . 4 3 Combat Bots Only 3 | . 3 3 Max Kills in Single Turn 2 | . 2 2 Gunslinging . | . . . Exploded 2 | . 2 2 Melee . | . . . Uniques/NPCs Destroyed . | . . . Combat | -11 -10 -9 -------- Run | Yrd Mat Mat Hostile Shots Fired 83 | . 33 50 Missed 30 | . 12 18 Hits 53 | . 21 32 Melee 5 | . . 5 Projectile 48 | . 21 27 Critical Strikes 3 | . . 3 Damage Taken 669 | . 186 483 Core 306 | . 45 261 Absorbed by Shields . | . . . Core Remaining (%) 91 | 100 82 . Volleys Fired 22 | . 18 4 Largest 2 | . 2 1 Hottest 70 | . 70 30 Shots Fired 33 | . 29 4 Gun 22 | . 22 . Cannon . | . . . Launcher 11 | . 7 4 Special . | . . . Kinetic 11 | . 11 . Thermal 11 | . 11 . Explosive 11 | . 7 4 Electromagnetic . | . . . Robot Hit Streak 4 | . 4 2 Robot Miss Streak 3 | . 3 1 Penetration Max . | . . . Secondary Targets . | . . . Shots Hit Robots 31 | . 19 12 Core Hits 29 | . 20 9 Critical Kills . | . . . Critical Parts Destroyed . | . . . Critical Strikes . | . . . Melee Attacks 26 | . 7 19 Impact . | . . . Slashing 26 | . 7 19 Piercing . | . . . Sneak Attacks 6 | . 5 1 Combat Hostiles . | . . . Follow-up Attacks 4 | . . 4 Damage Inflicted 1484 | . 895 589 Guns 126 | . 126 . Cannons . | . . . Explosions 830 | . 484 346 Melee 528 | . 285 243 Ramming . | . . . Kinetic 88 | . 88 . Thermal 38 | . 38 . Explosive 830 | . 484 346 Electromagnetic . | . . . Impact . | . . . Slashing 528 | . 285 243 Piercing . | . . . Highest Corruption . | . . . Average Corruption . | . . . Corruption Purged . | . . . Corruption Blocked . | . . . Overload Shots . | . . . Overflow Damage 46 | . 29 17 Projectiles . | . . . Explosions 6 | . 6 . Melee 40 | . 23 17 Knockbacks . | . . . Impact . | . . . Kinetic . | . . . Secondary . | . . . Self-Inflicted Damage 25 | . 1 24 Shots 2 | . 1 1 Rammed . | . . . Targets Rammed . | . . . Kicked . | . . . Crushed . | . . . Highest Temperature 81 | . 81 13 Average Temperature 22 | . 23 7 Received Heat Transfer 126 | . 57 69 Siege Activations . | . . . Martial Activations . | . . . Shielding Activations . | . . . Robots Disrupted . | . . . Combat Hostiles . | . . . Robots Corrupted . | . . . Combat Hostiles . | . . . Parts Fried . | . . . Impact Corruptions . | . . . Robots Melted . | . . . Combat Hostiles . | . . . Parts Melted . | . . . Heat Transferred 111 | . 111 . Parts Sabotaged . | . . . Parts Stolen . | . . . Parts Stripped . | . . . Power Chain Reactions 1 | . 1 . Alert | -11 -10 -9 ------- Run | Yrd Mat Mat Maximum Alert Level . | . . . Low Security (%) 100 | 100 100 100 Level 1 . | . . . Level 2 . | . . . Level 3 . | . . . Level 4 . | . . . Level 5 . | . . . High Security . | . . . Max Security . | . . . Peak Influence 185 | . 185 157 Initial 55 | . . 55 Average 68 | . 76 71 Influence Increases 491 | . 319 172 Destroy 0b10 Robot/C 240 | . 160 80 Destroy 0b10 Robot/NC 35 | . 25 10 Destroy Leader 58 | . 46 12 Successful Hack 7 | . 7 . Disable Machine 45 | . 45 . Destroy Structure 61 | . 36 25 Partial Spotted 15 | . . 15 Lose Combat Pursuer 30 | . . 30 Influence Decreases 384 | . 187 197 Entered New Map 77 | . . 77 Time Decay 247 | . 177 70 Lost Part 60 | . 10 50 Squads Dispatched 3 | . 2 1 Investigation 2 | . 1 1 Extermination . | . . . Reinforcement 1 | . 1 . Assault . | . . . Garrison . | . . . Intercept . | . . . Searches Triggered . | . . . Construction Impeded . | . . . Haulers Reinforced . | . . . Active Scanning Responses . | . . . Cargo Convoy Interrupts . | . . . Stealth | -11 -10 -9 --------- Run | Yrd Mat Mat Distress Signals 2 | . 1 1 Communications Jammed . | . . . Distress Signals . | . . . Times Spotted 26 | . 16 10 Peak Tracking Total 9 | . 6 9 Tactical Retreats 2 | . . 2 Traps | -11 -10 -9 ------- Run | Yrd Mat Mat Traps Triggered 1 | . 1 . Indirectly . | . . . Trap Hack Attempts . | . . . Triggered . | . . . Disarmed . | . . . Reprogrammed . | . . . Reused . | . . . Traps Extracted . | . . . Installed . | . . . Triggered . | . . . Machines | -11 -10 -9 ---------- Run | Yrd Mat Mat Machines Disabled 3 | . 3 . Max in Single Turn 2 | . 2 . Machines Repaired . | . . . Machines Dismantled . | . . . Machines Sabotaged . | . . . Overloaded Fab Kills . | . . . Hacking | -11 -10 -9 --------- Run | Yrd Mat Mat Machines Accessed 5 | . 3 2 Terminals 5 | . 3 2 Fabricators . | . . . Repair Stations . | . . . Recycling Units . | . . . Scanalyzers . | . . . Garrison Access . | . . . Total Hacks 12 | . 5 7 Successful 2 | . 2 . Failed 10 | . 3 7 Catastrophic 3 | . 1 2 Database Lockouts . | . . . Manual 1 | . 1 . Terminals 12 | . 5 7 Fabricators . | . . . Repair Stations . | . . . Recycling Units . | . . . Scanalyzers . | . . . Garrison Access . | . . . Terminal Hacks 2 | . 2 . Transport Status 1 | . 1 . Registered Components 1 | . 1 . Fabricator Hacks . | . . . Repair Station Hacks . | . . . Recycling Unit Hacks . | . . . Scanalyzer . | . . . Garrison Access Hacks . | . . . Unauthorized Hacks . | . . . Terminals . | . . . Fabricators . | . . . Repair Stations . | . . . Recycling Units . | . . . Scanalyzers . | . . . Garrison Access . | . . . Data Cores Recovered 1 | . . 1 Used . | . . . Hacking Detections 5 | . 3 2 Full Trace Events 2 | . . 2 Feedback Events . | . . . Feedback Blocked . | . . . Robot Schematics Acquired . | . . . Robots Built . | . . . Authchips . | . . . Time . | . . . Total Robot Build Rating . | . . . Part Schematics Acquired . | . . . Parts Built . | . . . Authchips . | . . . Time . | . . . Total Part Build Rating . | . . . Part Studies Acquired . | . . . Parts Repaired . | . . . Time . | . . . Parts Recycled . | . . . Recycled Matter . | . . . Retrieved Matter . | . . . Retrieved Components . | . . . Parts Scanalyzed . | . . . Part Schematics Acquired . | . . . Parts Damaged . | . . . Bothacking | -11 -10 -9 ------------ Run | Yrd Mat Mat Used RIF Installer . | . . . Robots Hacked . | . . . Non-combat . | . . . Combat . | . . . Robot Hacks Applied . | . . . Relay Couplers Released . | . . . Fabnet Peak Effective % . | . . . Robots Rewired . | . . . Allies Hacked . | . . . Hacks Repelled . | . . . Allies | -11 -10 -9 -------- Run | Yrd Mat Mat Total Allies . | . . . Largest Group . | . . . Highest-Rated Group . | . . . Highest-Rated Ally . | . . . Total Orders . | . . . Ally Attacks . | . . . Total Damage . | . . . Kills . | . . . Allies Corrupted . | . . . Allies Melted . | . . . Intel | -11 -10 -9 ------- Run | Yrd Mat Mat Active Infowar (turns) 285 | . 142 143 Sensors 285 | . 142 143 Robot Analysis Total . | . . . Derelict Logs Recovered . | . . . Drone Launches . | . . . Drone Recoveries . | . . . Exploration | -11 -10 -9 ------------- Run | Yrd Mat Mat Turns Passed 708 | 60 493 155 Spaces Moved 776 | 50 556 170 Core 7 | 7 . . Treads . | . . . Legs . | . . . Wheels 213 | 43 170 . Hover 556 | . 386 170 Flight . | . . . Fastest Speed 50 | 50 56 52 Average Speed 68 | 103 70 52 Slowest Speed 200 | 200 185 116 Overloaded Moves . | . . . Propulsion Burnouts . | . . . Robots Hopped . | . . . Potential Cave-ins . | . . . Cave-ins Triggered . | . . . Exploration Rate (%) 32 | 4 77 15 Regions Visited 2 Branch Regions . Pre-discovered Areas . | . . . Known Exits Taken 1 | . 1 . Unknown Exits Taken 1 | 1 . . Scrap Searched . | . . . Spaces Dug . | . . . Terrain Destroyed 59 | . 36 23 Melee . | . . . Projectile . | . . . AOE 59 | . 36 23 Terrain Rammed . | . . . Walls Destroyed . | . . . Machines Disabled . | . . . Actions | -11 -10 -9 --------- Run | Yrd Mat Mat Total 868 | 55 615 198 Wait 1 | . . 1 Move 774 | 49 555 170 Hop . | . . . Pick Up 11 | . 10 1 Fast Attach 12 | 6 4 2 Attach 2 | . 1 1 Detach 3 | . 3 . Swap 13 | . 9 4 Drop 9 | . 8 1 Fire 22 | . 18 4 Melee 21 | . 7 14 Ram . | . . . Kick . | . . . Crush . | . . . Escape Stasis . | . . . Rewire . | . . . Trap . | . . . Miscellaneous . | . . . Route ------- -11/Scrapyard -10/Materials (discovered 5 exits: *Mat x2 / [*Min x2] / [*Sub]) -9/Materials History --------- Turn | Location | Event 19 | -11/Scrapyard | Discovered new exit (range 16) 61 | -11/Scrapyard | Entered Materials 100 | -10/Materials | Discovered new exit (range 5) 209 | -10/Materials | Discovered new exit (range 9) 284 | -10/Materials | Discovered new exit (range 12) 317 | -10/Materials | Build established: Mutant 441 | -10/Materials | Discovered new exit (range 16) 449 | -10/Materials | Identified exit to Materials 496 | -10/Materials | Discovered new exit (range 10) 554 | -10/Materials | Entered another Materials area 554 | -9/Materials | Evolved 2 slots: Propulsion x1, Utility x1 706 | -9/Materials | Core integrity fell below 50% 709 | -9/Materials | Self-destructed Last Messages --------------- 00680_ Mining Claw follow-up attack on S-10 Pest. 00685_ C-30 ARC bursts open, deploying its payload. 00685_ L-31 Rogue unfolds itself. 00685_ G-34 Mercenary unfolds itself. 00686_ Hover Unit destroyed. 00688_ U-05 Engineer lays Concrete. 00689_ G-34 Mercenary destroyed. 00690_ U-05 Engineer builds a Wall. 00693_ Mining Claw follow-up attack on L-31 Rogue. 00695_ Nuclear Core severed. 00696_ Mining Claw follow-up attack on L-31 Rogue. 00697_ Hover Unit destroyed. 00697_ Sensor Array destroyed. 00702_ Mining Claw destroyed. 00702_ Hover Unit destroyed. 00704_ The unstable cave ceiling collapses. Map ----- +----------------------------------------------------+ | ????????????# #????????#####??????????? | | ????????????######+################ #??????????? | | ????????????# * #??????????? | | ????????????# ! = #??????????? | | ????????????# ## ############## ############ | | ????????????# ?# #####????????# | | ????????????# ?# !!#????????# | | ??????????? ??# !!#?######?# | | ????????? ??# #?#= ?# #####+##### | | ???????? ??## !!#?# # # *% = # | | ??????? ????# ** #?# """ # # "T"= #^ | | ?????? #????# **#?# """ + / ! # | | ??????? ?????# #####?# """ # # # | | ??????? ??????# #?????#[ # ########### | | ????????? ? ???????# #?????######?# #??????#??# | | ???????????????????# #?????# ????# #???? #??# | | ??????????????????## #####?# ""? # #??""" #??# | | ??????????????????##Y ### """ # # """ #??# | | ?????????????###### %% ## """ + + """ #??# | | ?????????????? u #! # # #??#^ | | ???????????????? # ??# #??% #??# | | ?????????????????? ### ##??# ##???#/#??# | | ???????????????????# # ### #????????? | | ???????????????????# ????????? | | ???????????????????# l [[ ????????? | | ???????????????????# @ ???????? | | ???????????????????# s =#+### ####??????? | | ???????????????????# ## ?###+###?????????? | | ???????????????????# ## #????????????????? | | ???????????????????# [ #? #????????????????? | | ???????????????????# #?? #????????????????? | | ???????????????????########??? #????????????????? | | ??????????????????????????????? #????????????????? | | ????????????????????????????????#????????????????? | | ?????????????????????????????????????????????????? | | ?????????????????????????????????????????????????? | | ?????????????????????????????????????????????????? | | ?????????????????????????????????????????????????? | | ?????????????????????????????????????????????????? | | ?????????????????????????????????????????????????? | | ?????????????????????????????????????????????????? | | ?????????????????????????????????????????????????? | | ?????????????????????????????????????????????????? | | ?????????????????????????????????????????????????? | | ?????????????????????????????????????????????????? | | ?????????????????????????????????????????????????? | | ?????????????????????????????????????????????????? | | ?????????????????????????????????????????????????? | | ?????????????????????????????????????????????????? | | ?????????????????????????????????????????????????? | +----------------------------------------------------+ Best States ------------- Heat Dissipation 28 Energy Generation 14 Energy Capacity 250 Matter Stores 247 Matter Capacity 300 Sight Range 16 Robot Scan Range 14 Terrain Scan Density 10 Evasion (%) 54 Item Schematics ----------------- None Robot Schematics ------------------ None Fabricated ------------ Nothing Repaired ---------- Nothing Studied --------- None Alien Tech Used ----------------- None Achievements -------------- None Challenges ------------ None Game ------ Seed CountertargetingShiftAxe Manual? 0 Play Time 00:13:20 Cumulative 85.0 hours Start 2025.10.26 @ 15:49:22 End 2025.10.26 @ 16:28:13 Sessions 1 Manual Loads 0 Difficulty Rogue Special Mode None Game No. 133 Rogue 133 Adventurer 0 Explorer 0 Win Type - Total 0 Types 0/0/0/0/0/0/0/0/0/0 Lore% 28 Gallery% 31 Achievement% 24 Wizard Run 0 Options --------- Layout 1 ASCII 0 Keyboard 0 Movement Arrows Keybinds 0 Fullscreen 1 Font 24/Smallcaps Map View 50x35 Zoom Use 0% Tactical HUD 1 Map Filters NONE Filters NONE Steam 1 RUN: 60fc5ec4-6b10-4109-92b9-ea76a3e49345